bitfinex-derivatives/quotes_ETHF0:USTF0_20251126
["timestamp","ask_amount","ask_price","bid_price","bid_amount"]
[1764130086487,0.00936119,2924.4,2923.7,0.17109]
[1764130087184,0.00936119,2924.4,2923.2,0.00295405]
[1764130087484,0.00936119,2924.4,2923.3,0.299]
[1764130089088,0.00936119,2924.4,2923.4,2.479]
[1764130091191,0.17106,2924.3,2923.2,0.00295405]
[1764130091401,2.6031475,2923.7,2923.2,0.00295405]
[1764130092391,2.6031475,2923.7,2921.9,0.1712]
[1764130092587,2.6031475,2923.2,2921.7,0.031]
[1764130092790,0.00512453,2922.7,2921.7,0.031]
[1764130092993,0.00512453,2922.7,2921.1,13.86708139]
[1764130092994,0.00512453,2922.7,2921.1,1.55108139]
[1764130093193,0.00512453,2922.7,2921.6,2.445]
[1764130093395,0.00512453,2922.7,2921.6,2.44928005]
[1764130094099,0.00512453,2922.7,2921.6,2.62049005]
[1764130094396,0.00512453,2922.7,2921.6,2.44928005]
[1764130094587,0.89306613,2924.0,2922.0,0.17119]
[1764130094896,2.6031475,2924.0,2922.0,0.17119]
[1764130095592,0.00513347,2923.3,2922.7,0.00513347]
[1764130095894,0.00513347,2923.3,2922.7,0.36413347]
[1764130097193,1.81366917,2924.4,2922.7,0.53528347]
[1764130097693,0.00423666,2924.4,2922.7,0.53528347]
[1764130098194,0.00513347,2923.8,2922.8,0.189]
[1764130098591,0.00513347,2923.8,2922.7,0.17628347]
[1764130098995,0.00513347,2923.8,2922.8,0.033]
[1764130099698,0.00513347,2923.8,2922.7,0.17628347]
[1764130099898,0.00513347,2923.8,2922.8,2.186]
[1764130101193,0.00513347,2923.8,2922.7,0.17628347]
[1764130101698,0.00513347,2923.8,2922.8,0.485]
[1764130101996,0.00513347,2923.8,2922.7,0.17628347]
[1764130102182,0.00513347,2923.8,2922.8,2.716]
[1764130103092,0.00513347,2923.8,2922.9,3.145]
[1764130103484,0.00513347,2923.8,2922.9,4.5642]
[1764130103689,0.00513347,2923.8,2923.0,1.2079]
[1764130103890,0.00513347,2923.8,2923.1,3.719]
[1764130104293,0.89306613,2924.3,2923.1,3.719]
[1764130104294,0.89306613,2924.2,2923.5,0.1711]
[1764130104590,0.00423666,2924.4,2923.5,0.1711]
[1764130104796,0.00423666,2924.4,2923.6,1.139]
[1764130104991,0.00423666,2924.4,2923.5,0.1711]
[1764130105191,0.00423666,2924.4,2923.6,3.767]
[1764130105392,0.00513347,2924.3,2923.6,3.767]
[1764130105796,0.00423666,2924.4,2923.9,0.17108]
[1764130106001,0.00423666,2924.4,2923.9,0.17484788]
[1764130106195,0.00423666,2924.4,2923.9,0.00376788]
[1764130106399,0.89306613,2925.8,2924.5,0.17104]
[1764130106597,0.89306613,2926.1,2924.5,0.17104]
[1764130106795,0.00513347,2925.4,2924.9,0.00513347]
[1764130106994,0.00513347,2925.4,2925.0,0.505]
[1764130107395,0.00895475,2925.4,2925.0,0.505]
[1764130108501,0.00895475,2925.4,2924.9,0.17615347]
[1764130108695,0.00895475,2925.4,2925.0,0.921]
[1764130110299,0.00895475,2925.4,2925.1,3.655]
[1764130111897,0.00895475,2925.4,2924.9,0.00513347]
[1764130112098,0.00895475,2925.4,2925.0,3.701]
[1764130113898,1.82301627,2927.0,2925.3,0.171]
[1764130114699,1.82301627,2927.0,2924.9,0.00513347]
[1764130114700,2.6031475,2926.6,2924.9,0.00513347]
[1764130115007,0.00513347,2926.0,2924.9,0.00513347]
[1764130115300,0.00513347,2926.0,2925.0,2.584]
[1764130115701,0.00513347,2926.0,2924.9,0.00513347]
[1764130115903,0.00513347,2926.0,2925.1,2.971]
[1764130116206,0.00513347,2926.0,2924.9,0.00513347]
[1764130116407,0.00513347,2926.0,2925.0,2.819]
[1764130116810,0.00513347,2926.0,2925.1,3.012]
[1764130117008,0.00513347,2926.0,2925.2,0.171]
[1764130117205,0.00513347,2926.0,2925.3,0.171]
[1764130117509,0.00513347,2926.0,2925.3,2.7741475]
[1764130118308,0.00513347,2926.0,2925.5,0.17099]
[1764130118906,0.00432693,2926.6,2925.8,2.7741175]
[1764130119110,0.00432693,2926.6,2925.9,0.17096]
[1764130120111,0.00337202,2926.5,2925.9,0.17096]
[1764130120908,0.00337202,2926.5,2926.0,0.17096]
[1764130121108,3.53660905,2928.7,2926.6,0.17092]
[1764130121311,6.13975655,2928.7,2926.7,1.638]
[1764130122111,6.14344716,2928.7,2927.4,0.00512409]
[1764130122610,3.54029966,2928.7,2927.4,0.00512409]
[1764130122808,1.76432156,2928.7,2927.5,2.6031475]
[1764130123216,1.76432156,2928.7,2927.6,0.17086]
[1764130123416,1.76432156,2928.7,2928.0,2.6031475]
[1764130123616,1.76432156,2928.7,2928.1,0.501]
[1764130123814,1.76432156,2928.7,2928.1,0.50492888]
[1764130124412,1.76432156,2928.7,2928.1,1.64132888]
[1764130125212,1.76432156,2928.7,2928.2,4.34604346]
[1764130125618,1.76432156,2928.7,2928.1,1.64132888]
[1764130126522,1.76432156,2928.7,2928.3,0.17082]
[1764130126722,1.76432156,2928.7,2928.4,0.744]
[1764130127223,1.76432156,2928.7,2928.3,0.17082]
[1764130127523,1.76432156,2928.7,2928.4,0.744]
[1764130128625,1.76432156,2928.7,2928.4,3.3471475]
[1764130130630,1.76432156,2928.7,2928.2,0.17082]
[1764130130936,1.76432156,2928.7,2928.3,0.744]
[1764130132637,1.76432156,2928.7,2928.1,1.14032888]
[1764130132939,1.76432156,2928.7,2928.2,0.741]
[1764130133238,1.76432156,2928.7,2928.3,3.219]
[1764130134134,1.76432156,2928.7,2928.1,1.14032888]
[1764130134330,1.76432156,2928.7,2928.2,3.618]
[1764130134933,1.76432156,2928.7,2928.1,4.72632888]
[1764130136936,1.76432156,2928.7,2928.2,3.505]
[1764130138041,1.76432156,2928.7,2928.3,3.487]
[1764130138437,1.76432156,2928.7,2928.4,3.478]
[1764130139037,1.76432156,2928.7,2928.1,1.14032888]
[1764130139237,1.76432156,2928.7,2928.2,3.476]
[1764130139841,1.76432156,2928.7,2928.1,1.14032888]
[1764130140343,1.76432156,2928.7,2928.2,0.697]
[1764130141038,1.76432156,2928.7,2928.3,2.938]
[1764130142038,1.76432156,2928.7,2928.1,1.14032888]
[1764130142328,1.76432156,2928.7,2928.2,0.249]
[1764130143141,1.76432156,2928.7,2928.3,2.849]
[1764130145337,1.76432156,2928.7,2928.1,1.14032888]
[1764130145539,1.76432156,2928.7,2928.2,0.217]
[1764130146133,1.76432156,2928.7,2928.1,1.14032888]
[1764130146438,1.76432156,2928.7,2928.1,0.00392888]
[1764130147343,0.81935426,2928.6,2928.2,1.366]
[1764130147544,1.76432156,2928.7,2928.2,1.366]
[1764130147745,0.81935402,2928.6,2928.2,1.366]
[1764130147944,1.76432156,2928.7,2928.2,1.366]
[1764130148243,0.81935406,2928.6,2928.2,1.366]
[1764130148444,0.81935406,2928.5,2928.2,1.366]
[1764130148645,1.76432156,2928.7,2928.2,1.366]
[1764130148846,0.82052775,2928.6,2928.2,1.366]
[1764130149040,0.82052775,2928.5,2927.4,0.00512409]
[1764130149245,0.82052775,2928.4,2928.2,1.1304]
[1764130149450,0.82052775,2928.3,2928.2,1.1304]
[1764130149939,0.88496265,2928.5,2928.2,1.1304]
[1764130150136,0.88496265,2928.5,2928.2,1.13463977]
[1764130150336,0.88496265,2928.3,2928.2,1.13463977]
[1764130150742,0.82052775,2928.3,2928.2,1.13463977]
[1764130150943,0.88496265,2928.4,2928.2,1.13463977]
[1764130151954,1.7054904,2928.3,2928.2,1.13463977]
[1764130152147,0.88496265,2928.3,2928.2,1.13463977]
[1764130153347,0.82052775,2928.3,2928.2,1.13463977]
[1764130153547,0.88496265,2928.4,2928.2,1.13463977]
[1764130154245,1.7054904,2928.4,2928.2,1.13463977]
[1764130154448,0.82052775,2928.3,2928.2,1.13463977]
[1764130154648,0.88496265,2928.4,2928.2,1.13463977]
[1764130155357,0.82052775,2928.3,2928.2,1.13463977]
[1764130155750,0.88496265,2928.5,2928.2,1.13463977]
[1764130156759,0.88496265,2928.4,2928.2,1.13463977]
[1764130156955,1.7054904,2928.4,2928.2,1.13463977]
[1764130157155,0.82052775,2928.3,2928.2,1.13463977]
[1764130157552,0.88496265,2928.4,2928.2,1.13463977]
[1764130157951,1.7054904,2928.4,2928.2,1.13463977]
[1764130158147,0.82052775,2928.3,2928.2,1.13463977]
[1764130158859,0.88496265,2928.5,2928.2,1.13463977]
[1764130160255,1.7054904,2928.6,2928.2,1.13463977]
[1764130161853,1.7054904,2928.6,2927.4,0.00512409]
[1764130161854,0.17087,2927.5,2927.4,0.00512409]
[1764130162055,3.57662497,2927.5,2926.5,0.614]
[1764130162265,0.8222148,2927.4,2926.5,0.614]
[1764130162559,0.8222148,2927.3,2926.5,0.614]
[1764130162760,0.8222148,2927.2,2926.5,0.61802581]
[1764130162956,0.89648402,2927.4,2926.5,0.96102581]
[1764130163158,0.0050928,2927.2,2926.7,0.00512409]
[1764130165659,0.0050928,2927.2,2926.7,0.26982409]
[1764130173862,2.37562143,2926.9,2926.7,0.26982409]
[1764130185781,0.17091,2926.8,2926.7,0.26982409]
[1764130189294,0.99244384,2926.8,2926.7,0.26982409]
[1764130191894,0.82153384,2926.8,2926.7,0.26982409]
[1764130195901,0.1759828,2927.2,2926.7,0.26982409]
[1764130196096,0.82394262,2927.1,2926.7,0.26982409]
[1764130196294,0.82394262,2927.0,2926.7,0.26982409]
[1764130196494,0.1759828,2927.2,2926.7,0.26982409]
[1764130196695,0.82396742,2927.1,2926.7,0.26982409]
[1764130196895,0.82396742,2927.0,2926.7,0.26982409]
[1764130197099,0.1759828,2927.2,2926.7,0.26982409]
[1764130197302,0.82396573,2927.1,2926.7,0.26982409]
[1764130197503,0.82396573,2927.0,2926.7,0.26982409]
[1764130197799,0.1759828,2927.2,2926.7,0.26982409]
[1764130197997,0.82397112,2927.1,2926.7,0.26982409]
[1764130198297,0.0050928,2927.2,2926.7,0.26982409]
[1764130198505,0.82381986,2927.1,2926.7,0.26982409]
[1764130198704,0.0050928,2927.2,2926.7,0.26982409]
[1764130198905,0.82381813,2927.1,2926.7,0.26982409]
[1764130199105,0.0050928,2927.2,2926.7,0.26982409]
[1764130199309,0.82381858,2927.1,2926.7,0.26982409]
[1764130199504,0.0050928,2927.2,2926.7,7.29182409]
[1764130200694,0.89648402,2927.8,2926.7,7.29182409]
[1764130200896,2.20471143,2927.9,2926.8,0.1709]
[1764130201203,2.20471143,2927.9,2926.9,1.306]
[1764130201204,1.72059175,2927.8,2926.9,1.306]
[1764130201406,0.82410773,2927.7,2926.9,1.306]
[1764130201610,0.82410773,2927.6,2927.0,3.624]
[1764130201901,3.10119545,2927.9,2926.7,0.26982409]
[1764130202103,0.82371612,2927.8,2926.7,0.26982409]
[1764130202305,0.82371612,2927.7,2926.7,0.26982409]
[1764130202503,2.20471143,2927.5,2926.7,0.26982409]
[1764130202702,0.17086,2927.6,2926.7,0.26982409]
[1764130204203,0.17086,2927.6,2926.8,1.1814]
[1764130204808,2.20471143,2927.3,2926.8,1.1814]
[1764130205613,0.17086,2927.6,2926.8,1.1814]
[1764130205803,0.82237661,2927.5,2926.8,1.1814]
[1764130206004,0.82237661,2927.4,2926.8,1.1814]
[1764130206303,0.17086,2927.6,2926.8,1.1814]
[1764130206610,0.822331,2927.5,2926.8,1.1814]
[1764130206911,0.822331,2927.4,2926.8,1.1814]
[1764130207106,0.17086,2927.6,2926.8,1.1814]
[1764130207303,0.82237559,2927.5,2926.8,1.1814]
[1764130207511,0.82237559,2927.4,2926.8,1.1814]
[1764130207711,0.17086,2927.6,2926.8,1.1814]
[1764130207914,0.82233225,2927.5,2926.8,1.1814]
[1764130208211,0.82233225,2927.4,2926.8,1.1814]
[1764130208400,0.17086,2927.6,2926.8,1.1814]
[1764130208711,0.82229848,2927.5,2926.8,1.1814]
[1764130208912,0.82229848,2927.4,2926.8,1.1814]
[1764130209114,0.17086,2927.6,2926.8,1.1814]
[1764130209313,0.82229955,2927.5,2926.8,1.1814]
[1764130209509,0.82229955,2927.4,2926.8,1.1814]
[1764130209711,0.17087,2927.5,2926.8,1.1814]
[1764130209913,2.20471143,2927.3,2926.8,1.1814]
[1764130210611,2.20763099,2927.2,2926.8,1.1814]
[1764130210811,2.20763099,2927.2,2926.7,0.26982409]
[1764130210812,0.1709,2926.9,2926.7,0.26982409]
[1764130211010,2.20763099,2927.2,2925.5,3.05774385]
[1764130211011,2.20763099,2926.6,2925.5,2.44340394]
[1764130211312,2.20763099,2926.6,2925.3,0.592]
[1764130211514,2.20763099,2926.6,2925.3,3.03540394]
[1764130211909,0.00512409,2926.2,2925.7,0.00512409]
[1764130214712,1.46985404,2926.2,2925.7,0.00512409]
[1764130215916,1.46472995,2925.9,2925.5,1.20788124]
[1764130216219,0.171,2925.2,2923.6,2.44340394]
[1764130216525,1.4663732,2924.8,2923.8,0.992]
[1764130217110,0.00512409,2924.6,2924.0,0.00512409]
[1764130218020,0.00512409,2924.6,2924.0,0.99512409]
[1764130218817,0.00512409,2924.6,2924.0,0.00512409]
[1764130222533,0.00512409,2924.6,2924.0,0.97512409]
[1764130225617,0.00512409,2924.6,2924.1,2.835]
[1764130226120,0.00512409,2924.6,2924.0,0.00512409]
[1764130239138,1.46661396,2924.5,2924.0,0.00512409]
[1764130239440,1.47052371,2924.5,2924.0,0.00512409]
[1764130241640,1.46661396,2924.2,2924.0,0.00512409]
[1764130242638,1.47052371,2924.5,2924.0,0.00512409]
[1764130243444,1.46661396,2924.2,2923.3,0.654]
[1764130243637,0.17495975,2924.5,2923.3,0.654]
[1764130243835,2.28848319,2924.4,2923.3,0.654]
[1764130244036,1.46661396,2924.4,2923.3,0.654]
[1764130244238,0.82279286,2924.3,2923.3,0.654]
[1764130244540,1.46661396,2924.4,2923.5,0.00512409]
[1764130244734,0.82277376,2924.3,2923.5,0.00512409]
[1764130245037,1.46661396,2924.4,2923.5,0.00512409]
[1764130245038,1.46661396,2923.8,2923.5,0.00512409]
[1764130245238,1.46661396,2924.1,2923.5,0.00512409]
[1764130246041,1.46661396,2923.8,2923.5,0.00512409]
[1764130247445,1.46661396,2924.1,2923.5,0.00512409]
[1764130247642,0.82286677,2924.0,2923.5,0.00512409]
[1764130247941,1.46661396,2924.1,2923.5,0.00512409]
[1764130248143,0.82286103,2924.0,2923.5,0.00512409]
[1764130248335,0.82286103,2923.9,2923.5,0.00512409]
[1764130248532,1.46661396,2924.1,2923.5,0.00512409]
[1764130248739,0.82259612,2924.0,2923.5,0.00512409]
[1764130248949,1.46661396,2924.1,2923.5,0.00512409]
[1764130249843,2.53414798,2924.4,2923.5,0.00512409]
[1764130250045,0.8223861,2924.3,2923.5,0.00512409]
[1764130250347,1.46661396,2924.4,2923.5,0.00512409]
[1764130250545,0.82241114,2924.3,2923.5,0.00512409]
[1764130250744,1.46661396,2924.4,2923.5,0.00512409]
[1764130250940,0.82241114,2924.3,2923.5,0.00512409]
[1764130251141,1.46661396,2924.4,2923.5,0.00512409]
[1764130251445,0.8224118,2924.3,2923.5,0.00512409]
[1764130251648,1.46661396,2924.4,2923.5,0.00512409]
[1764130251848,0.8223759,2924.3,2923.5,0.00512409]
[1764130252150,1.46661396,2924.4,2923.5,1.47173805]
[1764130252351,0.8224228,2924.3,2923.5,0.00512409]
[1764130252650,0.00390975,2924.5,2923.5,0.00512409]
[1764130252846,0.00390975,2924.5,2923.7,1.46661396]
[1764130254150,0.00390975,2924.5,2924.0,1.46661396]
[1764130254444,0.00390975,2924.5,2924.3,1.46661396]
[1764130254642,0.00390975,2924.5,2924.1,0.866]
[1764130254643,0.00390975,2924.5,2924.1,1.03707]
[1764130254838,0.00512409,2924.6,2924.4,1.46661396]
[1764130255043,0.00512409,2924.6,2924.1,2.50368396]
[1764130255648,0.00512409,2924.6,2924.2,2.772]
[1764130255850,0.00912971,2924.6,2924.2,2.772]
[1764130256255,0.00912971,2924.6,2924.3,4.774]
[1764130256551,0.00912971,2924.6,2924.1,0.17107]
[1764130256751,0.00912971,2924.6,2924.2,5.443]
[1764130259053,0.00912971,2924.6,2924.1,1.63768396]
[1764130259353,0.00912971,2924.6,2924.2,5.443]
[1764130261145,0.89648402,2925.8,2924.4,1.46661396]
[1764130261359,1.46661396,2926.1,2925.0,1.46661396]
[1764130261544,0.82237621,2926.0,2925.1,1.534]
[1764130261854,1.46661396,2925.8,2925.1,1.534]
[1764130262246,0.00512409,2925.7,2925.2,0.00512409]
[1764130262650,1.46661396,2925.5,2925.2,0.00512409]
[1764130267062,7.46661396,2925.5,2923.7,1.46661396]
[1764130267247,1.46661396,2925.0,2923.8,0.696]
[1764130267754,1.46661396,2925.0,2924.0,1.46661396]
[1764130267954,1.46661396,2925.0,2924.2,0.00512409]
[1764130272661,1.46614816,2925.0,2924.2,0.00512409]
[1764130273666,1.48789161,2924.8,2924.2,0.00512409]
[1764130276166,1.48789161,2924.9,2924.2,0.00512409]
[1764130276861,0.17099,2925.4,2924.2,0.00512409]
[1764130277064,1.48789161,2925.1,2924.2,0.00512409]
[1764130277866,1.48789161,2925.1,2924.2,1.4930157]
[1764130278163,1.48789161,2925.1,2924.2,0.00512409]
[1764130278367,1.48789161,2924.5,2924.2,0.00512409]
[1764130278960,1.48789161,2924.7,2924.2,0.00512409]
[1764130279360,1.48789161,2924.3,2924.2,0.00512409]
[1764130281965,1.48789161,2924.3,2923.3,0.00380341]
[1764130282266,1.48789161,2923.7,2923.3,0.00380341]
[1764130282464,1.49222211,2923.7,2923.3,0.00380341]
[1764130282769,0.0043305,2923.7,2923.3,0.00380341]
[1764130286971,1.49222211,2923.7,2923.3,0.00380341]
[1764130287365,0.0043305,2923.7,2923.4,1.48789161]
[1764130287569,1.20104354,2925.0,2923.4,1.48789161]
[1764130287570,0.89572165,2924.9,2923.4,1.48789161]
[1764130287770,1.48789161,2924.8,2923.9,1.48789161]
[1764130288669,1.48789161,2924.4,2923.7,3.11689161]
[1764130289171,1.4930157,2924.6,2923.7,3.11689161]
[1764130290377,0.00512409,2924.6,2923.7,3.11689161]
[1764130290572,0.00512409,2924.6,2923.7,1.48789161]
[1764130290873,0.00512409,2924.6,2923.7,0.964]
[1764130290874,1.48789161,2924.5,2923.7,0.964]
[1764130292273,1.48789161,2924.5,2923.6,4.05789161]
[1764130292976,1.48789161,2924.5,2923.6,3.44089161]
[1764130295478,1.48789161,2924.5,2923.8,1.48789161]
[1764130296280,0.00512409,2924.6,2923.8,1.48789161]
[1764130296674,1.48789161,2924.2,2923.3,1.49169502]
[1764130296977,1.48789161,2924.2,2923.4,1.469]
[1764130298574,1.48789161,2924.2,2923.3,1.49169502]
[1764130298781,1.48789161,2924.2,2923.4,1.382]
[1764130298982,1.48789161,2924.0,2923.3,0.00380341]
[1764130299184,1.48789161,2923.8,2923.3,0.00380341]
[1764130300778,1.48789161,2923.4,2922.5,2.44340394]
[1764130300980,1.48789161,2923.1,2922.3,2.44340394]
[1764130301285,1.48789161,2923.3,2922.4,1.48789161]
[1764130301877,0.00512409,2923.1,2922.6,0.00512409]
[1764130302181,1.4930157,2923.1,2922.6,0.00512409]
[1764130303084,1.4930157,2923.1,2922.8,1.48789161]
[1764130303085,0.00512409,2923.1,2922.8,1.48789161]
[1764130303276,0.00512409,2923.1,2922.7,1.48789161]
[1764130304286,0.00512409,2923.1,2922.8,1.48789161]
[1764130305186,0.00512409,2923.1,2922.6,0.00512409]
[1764130305483,0.00512409,2923.1,2922.6,1.98012409]
[1764130305484,1.4930157,2923.1,2922.6,1.98012409]
[1764130305789,0.00512409,2923.1,2922.6,1.98012409]
[1764130307085,0.00512409,2923.1,2922.6,3.4680157]
[1764130309578,1.48789161,2922.9,2922.6,0.00512409]
[1764130310085,1.4930157,2923.1,2922.6,0.00512409]
[1764130312191,1.48789161,2922.9,2922.6,0.00512409]
[1764130316102,1.48789161,2922.7,2921.3,12.70240394]
[1764130316387,1.48789161,2922.3,2921.4,5.33889161]
[1764130316697,1.48789161,2922.3,2921.6,1.48789161]
[1764130317087,1.48789161,2921.9,2921.7,0.00513303]
[1764130317289,1.48789161,2922.1,2921.7,0.00513303]
[1764130317888,1.48789161,2921.9,2920.7,3.16040394]
[1764130318090,0.00441225,2922.3,2920.7,0.717]
[1764130318295,1.48789161,2921.9,2920.7,0.717]
[1764130318497,1.48789161,2921.9,2921.1,1.48789161]
[1764130318891,0.00513303,2921.8,2921.2,0.0034369]
[1764130319394,0.00513303,2921.8,2921.2,1.49132851]
[1764130319588,0.00513303,2921.8,2921.6,1.48789161]
[1764130319887,0.00513303,2921.8,2921.2,0.0034369]
[1764130321298,0.00513303,2921.8,2921.3,1.48789161]
[1764130321492,0.00513303,2921.8,2921.5,1.48789161]
[1764130321794,0.00513303,2921.8,2921.7,1.48789161]
[1764130322493,0.00441225,2922.3,2921.7,7.48789161]
[1764130322792,0.00441225,2922.3,2922.2,1.48789161]
[1764130323589,0.00513303,2922.5,2922.2,7.48789161]
[1764130323789,1.48789161,2923.5,2922.4,1.48789161]
[1764130323993,1.48789161,2923.7,2922.8,1.48789161]
[1764130324399,1.48789161,2923.5,2922.8,1.48789161]
[1764130324595,1.49235934,2923.5,2922.7,1.48909589]
[1764130324789,0.00513303,2923.4,2922.8,0.00513303]
[1764130326102,2.21211119,2925.0,2923.3,0.17111]
[1764130326589,2.21211119,2925.0,2923.4,0.862]
[1764130326896,0.00513303,2924.5,2923.4,0.86551031]
[1764130328495,0.00513303,2924.5,2923.5,3.133]
[1764130328699,0.00513303,2924.5,2923.4,0.00351031]
[1764130328901,0.00513303,2924.5,2923.6,3.462]
[1764130330194,0.00513303,2924.5,2923.7,2.21211119]
[1764130331399,0.00513303,2924.5,2923.8,4.05]
[1764130332302,0.00513303,2924.5,2923.9,4.05]
[1764130335611,0.00513303,2924.5,2924.0,3.872]
[1764130336009,0.00513303,2924.5,2923.4,0.00351031]
[1764130336402,0.00513303,2924.5,2923.5,3.309]
[1764130341114,0.00513303,2924.5,2923.4,0.00351031]
[1764130341315,0.00513303,2924.5,2923.5,0.376]
[1764130345919,0.17618303,2924.5,2923.4,0.00351031]
[1764130346214,0.17106,2924.3,2923.4,0.00351031]
[1764130350417,0.00513303,2924.5,2923.4,0.00351031]
[1764130351117,2.60649802,2924.5,2923.4,0.00351031]
[1764130351317,2.77754802,2924.5,2923.4,0.92151031]
[1764130352418,0.17618303,2924.5,2923.4,0.92151031]
[1764130354422,0.82274527,2924.4,2923.4,0.92151031]
[1764130354617,0.17618303,2924.5,2923.4,0.92151031]
[1764130354817,0.82277458,2924.4,2923.4,0.92151031]
[1764130355020,0.17618303,2924.5,2923.4,0.92151031]
[1764130355313,0.82277445,2924.4,2923.4,0.92151031]
[1764130355516,0.17618303,2924.5,2923.4,0.92151031]
[1764130356012,0.82303762,2924.4,2923.4,0.92151031]
[1764130356214,0.17618303,2924.5,2923.4,0.92151031]
[1764130356415,0.82305533,2924.4,2923.4,0.92151031]
[1764130356716,0.17618303,2924.5,2923.4,0.92151031]
[1764130356905,0.82304379,2924.4,2923.4,0.92151031]
[1764130357112,0.17618303,2924.5,2923.4,0.92151031]
[1764130357315,0.823044,2924.4,2923.4,0.92151031]
[1764130357606,0.17618303,2924.5,2923.4,0.92151031]
[1764130357809,0.82304798,2924.4,2923.4,0.00351031]
[1764130358109,2.77754802,2924.5,2923.5,0.559]
[1764130358310,0.82305947,2924.4,2923.5,0.559]
[1764130358515,2.77754802,2924.5,2923.5,0.559]
[1764130358715,0.82308002,2924.4,2923.5,0.559]
[1764130358914,2.77754802,2924.5,2923.4,0.00351031]
[1764130359116,0.82308002,2924.4,2923.4,0.43751031]
[1764130359317,2.77754802,2924.5,2923.4,0.43751031]
[1764130359619,0.82303193,2924.4,2923.4,0.43751031]
[1764130359820,2.77754802,2924.5,2923.4,0.43751031]
[1764130360023,0.82303629,2924.4,2923.4,0.43751031]
[1764130360222,2.77754802,2924.5,2923.4,0.43751031]
[1764130360414,0.82303215,2924.4,2923.4,0.43751031]
[1764130360613,2.77754802,2924.5,2923.4,0.43751031]
[1764130360816,0.82302323,2924.4,2923.4,0.43751031]
[1764130361017,2.77754802,2924.5,2923.4,0.43751031]
[1764130361319,0.82302316,2924.4,2923.4,0.43751031]
[1764130361515,2.77754802,2924.5,2923.4,0.43751031]
[1764130361721,0.82310856,2924.4,2923.4,0.43751031]
[1764130362023,0.17618303,2924.5,2923.4,0.43751031]
[1764130362220,0.82312423,2924.4,2923.4,0.43751031]
[1764130362422,0.17618303,2924.5,2923.4,0.43751031]
[1764130362624,0.82327712,2924.4,2923.4,0.43751031]
[1764130362819,0.17618303,2924.5,2923.4,0.43751031]
[1764130363018,0.82326784,2924.4,2923.4,0.43751031]
[1764130363218,0.17618303,2924.5,2923.4,0.43751031]
[1764130363522,0.82347539,2924.4,2923.4,0.43751031]
[1764130363723,0.00513303,2924.5,2923.4,0.43751031]
[1764130363929,0.82341023,2924.4,2923.5,1.023]
[1764130364227,0.00513303,2924.5,2923.5,1.023]
[1764130364519,0.82375169,2924.4,2923.5,1.023]
[1764130364721,0.82375169,2924.3,2923.4,0.00351031]
[1764130364910,0.00513303,2924.5,2923.5,1.024]
[1764130365223,0.82374847,2924.4,2923.5,1.024]
[1764130365423,0.82374847,2924.3,2923.5,1.024]
[1764130365721,0.82374847,2924.2,2923.5,1.024]
[1764130365920,0.89954735,2924.5,2923.5,1.024]
[1764130366122,0.82872326,2924.4,2923.5,1.024]
[1764130366322,0.82872326,2924.3,2923.5,1.024]
[1764130366510,0.82872326,2924.2,2923.5,1.024]
[1764130366715,0.89954735,2924.5,2923.5,1.024]
[1764130366916,0.82863481,2924.4,2923.5,1.024]
[1764130367116,1.46689545,2924.2,2923.5,1.024]
[1764130369124,1.46689545,2924.2,2923.6,3.437]
[1764130370430,2.3664428,2924.5,2923.6,3.437]
[1764130370728,0.82887893,2924.4,2923.6,3.437]
[1764130370918,0.82887893,2924.3,2923.6,3.437]
[1764130371117,0.82887893,2924.2,2923.6,3.437]
[1764130371321,2.3664428,2924.5,2923.6,3.437]
[1764130371520,0.82896685,2924.4,2923.6,3.437]
[1764130371726,0.82896685,2924.3,2923.6,3.437]
[1764130371918,0.82896685,2924.2,2923.6,3.437]
[1764130372123,2.3664428,2924.5,2923.6,3.437]
[1764130372321,0.82896719,2924.4,2923.6,3.437]
[1764130372521,1.47202848,2924.5,2923.6,3.437]
[1764130372721,0.82912711,2924.4,2923.6,4.90389545]
[1764130373020,0.00513303,2924.5,2923.6,4.90389545]
[1764130374123,0.00513303,2924.5,2923.6,7.34729939]
[1764130374926,1.47202848,2924.5,2923.6,3.437]
[1764130380834,1.47202848,2924.5,2923.4,2.44691425]
[1764130381424,1.46689545,2924.2,2923.4,0.00351031]
[1764130381630,1.46689545,2924.2,2923.5,1.947]
[1764130381829,1.46689545,2924.2,2923.6,4.353]
[1764130382024,0.00513303,2924.5,2923.6,4.353]
[1764130382325,0.00513303,2924.5,2923.6,8.26329939]
[1764130382634,0.00513303,2924.5,2923.9,1.46689545]
[1764130383227,0.00513303,2924.5,2923.7,2.44340394]
[1764130383426,0.00513303,2924.5,2923.6,8.26329939]
[1764130385535,0.00513303,2924.5,2923.7,4.843]
[1764130386228,0.00513303,2924.5,2923.6,3.91029939]
[1764130386629,1.46689545,2924.3,2923.5,2.44340394]
[1764130386835,1.46689545,2924.0,2923.6,3.735]
[1764130387235,1.46689545,2924.3,2923.6,3.735]
[1764130387631,1.46689545,2924.3,2923.4,2.44691425]
[1764130387832,1.46689545,2924.3,2923.5,1.942]
[1764130388434,1.46689545,2924.3,2923.6,4.133]
[1764130389038,0.00513303,2924.5,2923.6,4.133]
[1764130390742,0.00513303,2924.5,2923.5,1.46689545]
[1764130391147,0.00513303,2924.5,2923.6,1.216]
[1764130391344,0.00513303,2924.5,2923.8,1.46689545]
[1764130394046,0.00513303,2924.5,2923.7,3.91029939]
[1764130394743,0.00513303,2924.5,2923.8,4.245]
[1764130395136,0.00513303,2924.5,2923.7,1.46689545]
[1764130395336,0.00513303,2924.5,2923.8,4.928]
[1764130396345,0.00513303,2924.5,2923.9,4.388]
[1764130397951,0.00513303,2924.5,2924.0,4.312]
[1764130401850,0.00513303,2924.5,2924.0,5.5353]
[1764130402051,0.00513303,2924.5,2924.0,7.02327579]
[1764130402346,0.00513303,2924.5,2924.3,1.48797579]
[1764130402551,1.48797579,2924.4,2924.0,1.2233]
[1764130402755,1.48797579,2924.4,2924.1,2.23]
[1764130403050,1.48797579,2924.4,2924.0,5.1123]
[1764130404055,1.48797579,2924.4,2924.0,6.5243]
[1764130404547,1.48797579,2924.4,2924.0,1.2233]
[1764130404743,1.48797579,2924.2,2924.0,1.2233]
[1764130406554,1.48797579,2924.4,2924.0,1.2233]
[1764130409155,1.48797579,2924.2,2924.0,1.2233]
[1764130410758,1.48797579,2924.1,2924.0,1.2233]
[1764130410954,0.82881995,2924.1,2923.8,0.918]
[1764130411153,1.48797579,2923.9,2923.8,0.918]
[1764130411655,1.48797579,2923.9,2923.4,0.00351031]
[1764130413457,1.48797579,2923.9,2923.4,1.06881031]
[1764130415062,1.48797579,2923.7,2923.4,1.06881031]